bitfinex/quotes_SOLUSD_20250922
["timestamp","ask_amount","ask_price","bid_price","bid_amount"]
[1758569702446,4.51515172,217.75,217.73,0.67]
[1758569702647,1.85696155,217.75,217.74,0.67]
[1758569703158,0.4668,217.78,217.74,0.67]
[1758569703364,1.85696155,217.76,217.75,0.67]
[1758569704587,5.18057159,217.76,217.73,5.26273064]
[1758569704883,3.32361004,217.75,217.74,0.67]
[1758569705049,5.18057159,217.75,217.74,0.67]
[1758569705449,5.18057159,217.75,217.74,53.58255556]
[1758569705450,2.60361004,217.75,217.74,53.58255556]
[1758569705653,0.4668,217.78,217.75,13.59559401]
[1758569705875,0.4668,217.78,217.75,14.26559401]
[1758569706081,0.4668,217.78,217.76,2.52696155]
[1758569706280,0.4668,217.78,217.76,0.67]
[1758569706488,0.4668,217.78,217.76,13.59559401]
[1758569706960,0.4668,217.78,217.76,14.26559401]
[1758569707163,2.32376155,217.78,217.76,14.26559401]
[1758569707491,0.4668,217.78,217.77,14.26559401]
[1758569707782,0.4668,217.78,217.77,16.12255556]
[1758569708366,0.4668,217.78,217.77,20.71455629]
[1758569708966,1e-08,217.78,217.77,20.71455629]
[1758569709576,1e-08,217.78,217.77,18.85759474]
[1758569709782,1e-08,217.78,217.77,58.21455629]
[1758569709998,1e-08,217.78,217.77,13.59559401]
[1758569710300,1.85696156,217.78,217.77,13.59559401]
[1758569710474,1.85696156,217.78,217.77,51.13559401]
[1758569710886,1.85696156,217.78,217.77,13.59559401]
[1758569711083,1e-08,217.78,217.77,18.18759474]
[1758569711282,1e-08,217.78,217.77,55.70759474]
[1758569711605,1e-08,217.78,217.77,51.11559401]
[1758569711773,1e-08,217.78,217.77,13.59559401]
[1758569712176,2.50696156,217.78,217.71,13.59559401]
[1758569712508,1.85696155,217.76,217.73,13.59559401]
[1758569712700,5.16319802,217.77,217.73,13.59559401]
[1758569712876,5.16319802,217.76,217.73,51.07559401]
[1758569713592,4.51319802,217.76,217.73,51.07559401]
[1758569714275,4.51319802,217.77,217.73,56.33840304]
[1758569714469,5.16319802,217.77,217.73,55.66840304]
[1758569714778,4.51319802,217.74,217.71,13.59559401]
[1758569714974,4.51319802,217.72,217.71,13.59559401]
[1758569715373,5.16319802,217.73,217.71,13.59559401]
[1758569715697,0.65,217.73,217.68,13.59559401]
[1758569715898,5.18319802,217.72,217.7,13.59559401]
[1758569716199,4.51319802,217.71,217.69,37.46]
[1758569716377,4.51319802,217.7,217.69,37.46]
[1758569716795,5.18319802,217.7,217.68,37.46]
[1758569716977,5.18319802,217.7,217.68,37.44]
[1758569717382,5.18319802,217.7,217.67,13.59559401]
[1758569717884,5.18319802,217.7,217.68,37.42]
[1758569718306,5.06779802,217.72,217.68,37.42]
[1758569718670,4.51319802,217.71,217.68,37.42]
[1758569718894,0.67,217.71,217.68,37.42]
[1758569719204,4.51319802,217.69,217.66,0.15549896]
[1758569719381,4.51319802,217.67,217.66,37.53549896]
[1758569719577,4.51319802,217.67,217.66,0.15549896]
[1758569719892,4.51319802,217.68,217.66,37.55549896]
[1758569720297,4.51319802,217.69,217.66,0.15549896]
[1758569720496,4.59411035,217.67,217.66,0.15549896]
[1758569720819,9.77730837,217.67,217.66,0.15549896]
[1758569724079,26.67,217.7,217.66,0.15549896]
[1758569724288,4.51319802,217.67,217.66,0.15549896]
[1758569724906,26.0,217.68,217.66,0.15549896]
[1758569725198,4.51319802,217.67,217.66,0.15549896]
[1758569725387,5.18319802,217.67,217.66,0.15549896]
[1758569725590,9.77730837,217.67,217.66,0.15549896]
[1758569727583,5.26411035,217.67,217.66,0.15549896]
[1758569728009,9.77730837,217.67,217.66,0.15549896]
[1758569731791,26.0,217.64,217.62,0.1]
[1758569732012,4.51319802,217.63,217.62,0.1]
[1758569732201,5.19319802,217.63,217.62,0.1]
[1758569733296,26.0,217.61,217.6,10.09692512]
[1758569733504,73.16857507,217.61,217.58,1.01289359]
[1758569733708,4.51319802,217.59,217.58,1.01289359]
[1758569734226,31.19319802,217.59,217.58,1.01289359]
[1758569734428,20.0,217.58,217.55,175.99975854]
[1758569734626,37.38,217.57,217.55,175.99975854]
[1758569734922,37.64,217.56,217.55,175.99975854]
[1758569735223,9.60639604,217.56,217.55,175.99975854]
[1758569735513,40.2028292,217.56,217.55,175.99975854]
[1758569735716,51.2828292,217.56,217.55,175.99975854]
[1758569736003,9.10963118,217.56,217.55,175.99975854]
[1758569736213,51.2828292,217.56,217.55,175.99975854]
[1758569736600,51.2628292,217.56,217.55,175.99975854]
[1758569737209,68.23643316,217.56,217.55,175.99975854]
[1758569737414,72.74963118,217.56,217.55,175.99975854]
[1758569737793,35.10963118,217.56,217.55,175.99975854]
[1758569738294,40.2028292,217.56,217.55,36.01462156]
[1758569738488,40.2028292,217.56,217.55,11.47410369]
[1758569738814,77.56583981,217.56,217.55,11.47410369]
[1758569739299,39.90583981,217.56,217.55,11.47410369]
[1758569739504,77.56583981,217.56,217.49,0.67]
[1758569739727,75.70395848,217.56,217.5,0.67]
[1758569740042,1.86188133,217.51,217.5,0.67]
[1758569741136,0.58,217.64,217.51,13.59559401]
[1758569741429,1.86188133,217.55,217.52,0.67]
[1758569741627,11.48596667,217.66,217.53,13.59559401]
[1758569741837,31.8745325,217.65,217.55,13.59559401]
[1758569742115,1.86188133,217.6,217.57,13.59559401]
[1758569742312,1.86188133,217.6,217.58,0.67]
[1758569742518,1.86188133,217.61,217.58,0.67]
[1758569742704,4.51929387,217.61,217.58,0.67]
[1758569742904,4.51929387,217.6,217.58,0.67]
[1758569743211,53.71864755,217.68,217.58,0.67]
[1758569743522,4.51929387,217.62,217.58,0.67]
[1758569743689,5.09929387,217.7,217.58,0.67]
[1758569743690,4.51929387,217.65,217.59,18.11488788]
[1758569743893,19.5132085,217.72,217.61,13.59559401]
[1758569744097,4.5932085,217.72,217.63,13.59559401]
[1758569744292,4.51929387,217.65,217.63,13.59559401]
[1758569744521,4.51929387,217.65,217.64,0.67]
[1758569745415,4.51929387,217.65,217.6,0.67]
[1758569745725,4.51929387,217.61,217.58,13.59559401]
[1758569746040,4.51929387,217.6,217.58,13.59559401]
[1758569746237,4.51929387,217.59,217.58,0.67]
[1758569746836,4.51929387,217.59,217.52,13.59559401]
[1758569746837,4.51929387,217.59,217.54,0.67]
[1758569747022,26.0,217.62,217.55,0.67]
[1758569747351,26.0,217.53,217.43,3.0712074]
[1758569747520,4.51929387,217.47,217.41,4.59953695]
[1758569747719,4.51929387,217.48,217.45,0.67]
[1758569747939,26.0,217.53,217.45,0.67]
[1758569747940,4.51929387,217.47,217.45,0.67]
[1758569748521,7.10702537,217.48,217.46,0.77]
[1758569748729,26.0,217.47,217.46,0.1]
[1758569748930,26.58,217.47,217.46,0.1]
[1758569749344,31.1783354,217.47,217.46,0.1]
[1758569750130,70.4183354,217.47,217.46,0.1]
[1758569750331,31.1783354,217.47,217.46,0.1]
[1758569750555,77.52536077,217.47,217.46,0.1]
[1758569750849,38.28536077,217.47,217.46,0.1]
[1758569751053,38.25996077,217.47,217.46,0.1]
[1758569751233,0.5546,217.47,217.46,0.1]
[1758569751549,7.66162537,217.47,217.46,0.1]
[1758569752832,33.66162537,217.47,217.46,0.1]
[1758569753030,34.24162537,217.47,217.46,0.1]
[1758569754156,34.24162537,217.47,217.4,1e-08]
[1758569754157,20.0,217.41,217.4,1e-08]
[1758569754328,7.10702537,217.41,217.4,1e-08]
[1758569754532,26.0,217.38,217.31,0.67]
[1758569754733,26.0,217.38,217.31,14.26559401]
[1758569754734,7.10702537,217.32,217.31,14.26559401]
[1758569755245,0.58,217.32,217.23,0.67]
[1758569755548,0.58,217.32,217.17,2.40389932]
[1758569755549,26.0,217.33,217.24,0.67]
[1758569755756,14.41221523,217.44,217.25,7.10702537]
[1758569755928,7.10702537,217.35,217.26,0.67]
[1758569756129,7.10702537,217.35,217.27,39.68]
[1758569756347,7.10702537,217.36,217.28,0.67]
[1758569756548,4.59911572,217.44,217.29,46.78702537]
[1758569756750,7.10702537,217.39,217.3,0.67]
[1758569757160,7.10702537,217.34,217.3,0.67]
[1758569757332,30.60019476,217.39,217.31,0.71]
[1758569757659,26.0,217.39,217.31,0.71]
[1758569758029,7.10702537,217.36,217.31,0.71]
[1758569758337,7.10702537,217.36,217.32,0.71]
[1758569758636,12.07839409,217.43,217.33,0.71]
[1758569758637,4.59973795,217.41,217.33,0.71]
[1758569758832,7.10702537,217.36,217.33,0.71]
[1758569759034,7.10702537,217.36,217.34,0.71]
[1758569759437,40.26,217.46,217.35,0.71]
[1758569759652,26.0,217.43,217.35,0.71]
[1758569760067,7.10702537,217.4,217.35,0.71]
[1758569760234,7.10702537,217.41,217.31,16.10602364]
[1758569760555,7.10702537,217.4,217.33,7.10702537]
[1758569760757,7.10702537,217.38,217.34,0.71]
[1758569760958,26.58,217.42,217.29,7.10702537]
[1758569761259,7.10702537,217.37,217.34,0.71]
[1758569761651,4.59977239,217.41,217.28,39.66]
[1758569761652,4.59977239,217.41,217.35,0.71]
[1758569761855,7.10702537,217.36,217.31,0.71]
[1758569762052,26.0,217.38,217.25,5.31299194]
[1758569762255,0.58,217.37,217.17,13.77579893]
[1758569762474,26.0,217.34,217.17,4.60468757]
[1758569762760,26.0,217.33,217.24,0.71]
[1758569762972,7.10702537,217.29,217.24,0.71]
[1758569763180,0.58,217.34,217.24,0.71]
[1758569763340,39.09680564,217.41,217.1,16.16296811]
[1758569763341,4.60193281,217.3,217.15,13.73236784]
[1758569763545,30.60193281,217.3,217.12,54.85963323]
[1758569763742,26.0,217.29,217.16,7.81702537]
[1758569763953,26.0,217.25,217.16,0.71]
[1758569764145,26.0,217.19,217.16,0.71]
[1758569764459,26.0,217.23,217.11,2.40463303]
[1758569764641,0.58,217.22,217.11,2.40463303]
[1758569764840,26.0,217.23,217.12,0.71]
[1758569765100,26.0,217.25,217.16,7.10702537]
[1758569765259,26.0,217.25,217.15,0.71]
[1758569765444,26.0,217.23,217.14,0.71]
[1758569765643,26.0,217.23,217.15,0.71]
[1758569765851,4.60313473,217.25,217.16,13.59559401]
[1758569766065,7.10702537,217.18,217.17,14.30559401]
[1758569766276,7.10702537,217.18,217.17,13.59559401]
[1758569766566,7.10702537,217.18,217.17,0.71]
[1758569766775,7.10702537,217.43,217.19,13.59559401]
[1758569766952,4.599816,217.4,217.23,13.59559401]
[1758569767264,26.0,217.33,217.24,0.71]
[1758569767465,4.60066249,217.36,217.24,0.71]
[1758569767648,4.599816,217.4,217.25,20.70261938]
[1758569767843,0.71,217.39,217.27,20.70261938]
[1758569768042,4.599816,217.4,217.16,39.1416467]
[1758569768043,0.71,217.38,217.24,0.71]
[1758569768362,7.10702537,217.34,217.25,13.59559401]
[1758569768544,0.71,217.38,217.28,20.70261938]
[1758569768745,7.10702537,217.32,217.28,13.59559401]
[1758569768972,7.10702537,217.32,217.3,13.59559401]
[1758569769472,26.0,217.35,217.28,5.31232976]
[1758569769670,7.10702537,217.43,217.29,14.30559401]
[1758569769671,7.10702537,217.34,217.29,14.30559401]
[1758569769849,7.10702537,217.31,217.25,13.59559401]
[1758569770168,7.10702537,217.33,217.27,13.59559401]
[1758569770363,0.71,217.37,217.28,7.81702537]
[1758569770573,7.10702537,217.35,217.28,7.81702537]
[1758569770874,7.10702537,217.36,217.29,7.10702537]
[1758569771044,26.0,217.39,217.31,13.59559401]
[1758569771366,7.10702537,217.37,217.31,13.59559401]
[1758569771572,4.60100804,217.35,217.28,13.59559401]
[1758569771864,7.10702537,217.34,217.28,13.59559401]
[1758569772066,26.0,217.4,217.31,13.59559401]
[1758569772275,11.49854904,217.42,217.31,13.59559401]
[1758569772276,33.10702537,217.39,217.33,13.59559401]
[1758569772653,7.10702537,217.36,217.3,13.59559401]
[1758569772970,7.10702537,217.37,217.32,13.59559401]
[1758569773157,7.10702537,217.37,217.32,14.30559401]
[1758569773667,7.10702537,217.37,217.34,13.59559401]
[1758569773851,7.10702537,217.37,217.28,52.1256775]
[1758569773852,7.10702537,217.36,217.21,26.0]
[1758569774059,7.10702537,217.31,217.26,13.59559401]
[1758569774266,7.10702537,217.3,217.28,13.59559401]
[1758569774460,0.71,217.36,217.28,13.59559401]
[1758569774867,0.71,217.36,217.15,20.0]
[1758569774868,7.10702537,217.29,217.23,13.59559401]
[1758569775171,7.10702537,217.25,217.21,13.59559401]
[1758569775370,0.67,217.3,217.21,14.31559401]
[1758569775567,26.0,217.29,217.2,0.72]
[1758569775871,4.14267241,217.26,217.17,40.76]
[1758569776052,7.10702537,217.22,217.18,13.59559401]
[1758569776254,7.10702537,217.22,217.15,7.10702537]
[1758569776255,7.10702537,217.2,217.15,40.8]
[1758569776458,0.67,217.22,217.15,40.8]
[1758569776459,7.10702537,217.19,217.15,0.72]
[1758569776658,0.67,217.18,217.02,30.58387796]
[1758569776858,26.0,217.22,217.02,2.40361464]
[1758569777057,26.0,217.15,217.0,0.1]
[1758569777468,26.0,217.18,216.94,2.40337414]
[1758569777649,4.14651002,217.05,216.94,2.40337414]
[1758569777859,0.67,217.1,216.96,0.72]
[1758569778049,26.0,217.11,216.96,0.72]
[1758569778250,26.0,217.12,216.99,7.10702537]
[1758569778476,26.0,217.12,217.0,0.72]
[1758569778650,0.67,217.13,217.0,0.72]
[1758569779162,0.67,217.18,217.0,43.92]
[1758569779469,4.14380205,217.2,216.95,26.22948614]
[1758569779470,26.67,217.21,217.08,20.70261938]
[1758569779777,13.84306578,217.25,217.08,0.72]
[1758569779778,26.0,217.19,217.08,0.72]
[1758569780102,0.5546,217.13,217.1,7.10702537]
[1758569780377,0.5546,217.13,217.08,4.60659664]
[1758569780585,0.5546,217.13,217.12,7.10702537]
[1758569780788,0.5546,217.13,217.09,0.72]
[1758569780789,0.5546,217.13,217.1,13.59559401]
[1758569780996,0.5546,217.13,217.02,30.60787024]
[1758569780997,0.5546,217.13,217.02,4.60787024]
[1758569781292,0.5546,217.13,217.03,14.31559401]
[1758569781574,1.2246,217.13,217.03,14.31559401]
[1758569781772,0.5546,217.13,217.06,13.59559401]
[1758569781977,0.67,217.12,216.96,13.59559401]
[1758569782177,4.69975523,217.13,217.0,13.59559401]
[1758569782178,0.5546,217.13,217.0,13.59559401]
[1758569782479,0.5546,217.13,217.08,13.59559401]
[1758569782652,7.10702537,217.12,217.07,13.59559401]
[1758569782969,0.5546,217.13,217.09,13.59559401]
[1758569783151,0.5546,217.13,217.12,20.70261938]
[1758569783354,7.10702537,217.26,217.12,13.59559401]
[1758569783568,7.10702537,217.26,217.1,0.72]
[1758569783569,0.67,217.29,217.14,13.59559401]
[1758569783774,0.67,217.34,217.22,20.70261938]
[1758569783977,0.67,217.34,217.24,13.59559401]
[1758569784185,7.10702537,217.27,217.19,14.31559401]
[1758569784383,7.10702537,217.23,217.19,13.59559401]
[1758569784586,0.67,217.33,217.21,13.59559401]
[1758569784793,7.10702537,217.3,217.23,13.59559401]
[1758569784963,0.67,217.29,217.19,13.59559401]
[1758569785166,7.10702537,217.29,217.21,20.70261938]
[1758569785364,16.10089367,217.38,217.26,13.59559401]
[1758569785365,0.67,217.38,217.26,13.59559401]
[1758569785573,0.67,217.37,217.21,0.72]
[1758569785782,7.10702537,217.24,217.17,0.72]
[1758569785980,7.10702537,217.24,217.18,13.59559401]
[1758569786381,7.10702537,217.2,216.98,20.0]
[1758569786578,26.0,217.29,216.92,2.40658759]
[1758569786579,26.67,217.19,217.06,0.72]
[1758569786783,2.40536756,217.4,217.18,7.10702537]
[1758569786784,0.67,217.32,217.18,7.10702537]
[1758569786971,0.67,217.32,217.09,7.10702537]
[1758569786972,7.10702537,217.33,217.2,13.59559401]
[1758569787271,0.67,217.31,217.26,7.10702537]
[1758569787472,4.60064223,217.37,217.24,0.66]
[1758569787664,4.60087416,217.35,217.22,0.66]
[1758569787874,0.7,217.37,217.29,7.10702537]
[1758569788079,0.7,217.4,217.31,7.10702537]
[1758569788471,7.10702537,217.42,217.34,7.10702537]
[1758569788667,0.7,217.41,217.29,13.59559401]
[1758569788873,7.10702537,217.4,217.32,7.10702537]
[1758569789173,33.10702537,217.4,217.33,13.59559401]
[1758569789384,0.7,217.48,217.39,13.59559401]
[1758569789693,4.59854685,217.46,217.35,20.70261938]
[1758569789904,0.7,217.47,217.39,7.10702537]
[1758569790150,7.10702537,217.49,217.41,7.10702537]
[1758569790318,7.10702537,217.47,217.4,7.10702537]
[1758569790468,7.10702537,217.45,217.37,0.66]
[1758569790674,0.7,217.46,217.34,0.66]
[1758569790895,7.10702537,217.4,217.34,20.70261938]
[1758569791076,7.10702537,217.41,217.35,13.59559401]
[1758569791275,5.29780657,217.5,217.4,7.10702537]
[1758569791491,8.27343869,217.5,217.39,7.10702537]
[1758569791715,26.0,217.47,217.39,7.10702537]
[1758569791886,0.7,217.55,217.4,0.66]
[1758569792087,0.7,217.55,217.43,7.10702537]
[1758569792283,7.10702537,217.5,217.43,7.10702537]
[1758569792504,4.79651048,217.56,217.48,7.10702537]
[1758569792703,4.79651048,217.56,217.49,7.10702537]
[1758569792906,26.0,217.54,217.48,13.59559401]
[1758569793215,0.2,217.56,217.5,13.59559401]
[1758569793609,7.10702537,217.52,217.45,0.66]
[1758569793796,11.70443285,217.52,217.43,20.70261938]
[1758569793989,30.59740748,217.52,217.43,20.70261938]
[1758569794194,30.59740748,217.52,217.45,7.10702537]
[1758569794401,7.10702537,217.48,217.43,13.59559401]
[1758569794602,7.10702537,217.49,217.42,13.59559401]
[1758569794807,7.10702537,217.5,217.43,7.10702537]
[1758569795008,7.10702537,217.5,217.42,13.59559401]
[1758569795207,7.10702537,217.45,217.34,13.59559401]
[1758569795420,7.10702537,217.41,217.29,0.66]
[1758569795731,4.59918134,217.43,217.32,11.70848286]
[1758569795904,7.10702537,217.4,217.33,20.70261938]
[1758569796102,26.0,217.41,217.33,13.59559401]
[1758569796320,7.10702537,217.4,217.33,20.70261938]
[1758569796498,7.10702537,217.42,217.35,7.10702537]
[1758569796828,22.98639205,217.52,217.32,5.26150913]
[1758569796829,0.7,217.49,217.41,7.10702537]
[1758569797029,11.70451514,217.51,217.43,7.10702537]
[1758569797332,11.70451514,217.51,217.4,0.66]
[1758569797333,7.10702537,217.48,217.41,20.70261938]
[1758569797697,7.10702537,217.52,217.45,7.10702537]
[1758569797931,7.10702537,217.5,217.43,20.70261938]
[1758569798117,7.10702537,217.5,217.42,0.66]
[1758569798118,26.0,217.5,217.45,7.10702537]
[1758569798321,7.10702537,217.52,217.45,7.76702537]
[1758569798791,0.3659,217.48,217.45,7.76702537]
[1758569799216,0.3659,217.48,217.47,20.70261938]
[1758569799713,0.3659,217.48,217.47,25.96095478]
[1758569799956,0.2,217.56,217.48,13.59559401]
[1758569800150,0.2,217.56,217.47,25.96095478]
[1758569800151,0.2,217.56,217.55,20.70261938]
[1758569800516,0.2,217.56,217.55,21.36261938]
[1758569801425,0.7,217.69,217.55,21.36261938]
[1758569801426,0.7,217.73,217.56,13.59559401]
[1758569801626,0.7,217.73,217.55,66.94261938]
[1758569801627,7.10702537,217.72,217.66,13.59559401]
[1758569802022,5.29295197,217.73,217.66,7.10702537]
[1758569802224,12.39997734,217.73,217.66,7.10702537]
[1758569802822,5.29295197,217.73,217.66,7.10702537]
[1758569803143,5.29257768,217.75,217.67,7.10702537]
[1758569803325,12.39960305,217.75,217.68,13.59559401]
[1758569803637,7.10702537,217.74,217.68,13.59559401]
[1758569803938,11.48042072,217.77,217.7,13.59559401]
[1758569803939,4.59229264,217.76,217.7,13.59559401]
[1758569804140,7.10702537,217.74,217.65,13.59559401]
[1758569804440,26.0,217.72,217.65,13.59559401]
[1758569804619,26.0,217.72,217.69,20.70261938]
[1758569804814,0.7,217.81,217.71,7.10702537]
[1758569805024,0.7,217.81,217.73,7.10702537]
[1758569805340,0.7,217.81,217.75,7.10702537]
[1758569805834,26.0,217.78,217.7,13.59559401]
[1758569806038,26.0,217.78,217.74,13.59559401]
[1758569806339,0.7,217.77,217.74,13.59559401]
[1758569806516,4.59136822,217.8,217.73,13.59559401]
[1758569806718,4.59110982,217.82,217.75,20.70261938]
[1758569807015,11.69813519,217.82,217.75,7.10702537]
[1758569807219,7.10702537,217.8,217.73,7.10702537]
[1758569807618,4.59110982,217.82,217.72,13.59559401]
[1758569807938,7.10702537,217.76,217.69,7.10702537]
[1758569808239,0.7,217.76,217.7,13.59559401]
[1758569808624,7.80702537,217.76,217.7,13.59559401]
[1758569808831,0.7,217.76,217.7,13.59559401]
[1758569809036,0.7,217.76,217.7,7.10702537]
[1758569809541,33.10702537,217.77,217.67,13.59559401]
[1758569809730,7.10702537,217.76,217.7,13.59559401]
[1758569809932,4.5924225,217.75,217.7,13.59559401]
[1758569810238,4.5924225,217.75,217.68,7.10702537]
[1758569810239,7.10702537,217.74,217.69,13.59559401]
[1758569810541,4.51481442,217.74,217.68,13.59559401]
[1758569810721,26.0,217.76,217.72,13.59559401]
[1758569811849,4.59214888,217.77,217.71,13.59559401]
[1758569812242,5.29214888,217.77,217.7,13.59559401]
[1758569812549,5.29214888,217.77,217.68,13.59559401]
[1758569812550,4.51481442,217.74,217.68,13.59559401]
[1758569812748,4.51481442,217.75,217.68,13.59559401]
[1758569812954,5.29214888,217.77,217.7,13.59559401]
[1758569813143,5.29214888,217.77,217.72,13.59559401]
[1758569813538,9.8069633,217.77,217.7,4.51481442]
[1758569813865,5.29214888,217.77,217.7,4.51481442]
[1758569814019,4.51481442,217.76,217.69,4.51481442]
[1758569814428,4.51481442,217.75,217.69,13.59559401]
[1758569814855,4.51481442,217.75,217.68,4.51481442]
[1758569815170,4.51481442,217.74,217.67,13.59559401]
[1758569815342,4.51481442,217.73,217.66,4.51481442]
[1758569815648,4.51481442,217.72,217.66,13.59559401]
[1758569815850,4.59249014,217.75,217.67,4.51481442]
[1758569816358,9.10730456,217.75,217.67,4.51481442]
[1758569816662,4.51481442,217.76,217.69,13.59559401]
[1758569817031,4.51481442,217.76,217.66,5.25426222]
[1758569817231,4.51481442,217.76,217.69,13.59559401]
[1758569817458,0.65,217.82,217.72,4.51481442]
[1758569817642,0.65,217.82,217.73,14.28559401]
[1758569817844,4.51481442,217.81,217.75,13.59559401]
[1758569818174,4.51481442,217.76,217.7,13.59559401]
[1758569818347,4.51481442,217.75,217.69,13.59559401]
[1758569818662,4.51481442,217.76,217.69,13.59559401]
[1758569818954,4.5911785,217.81,217.63,41.0366605]
[1758569818955,4.51481442,217.71,217.65,13.59559401]
[1758569819154,4.51481442,217.69,217.65,13.59559401]
[1758569819357,4.51481442,217.69,217.62,13.59559401]
[1758569819852,4.51481442,217.69,217.62,18.19074728]
[1758569820254,9.10835257,217.7,217.62,22.7055617]
[1758569820448,4.51481442,217.69,217.62,18.19074728]
[1758569820834,4.51481442,217.68,217.62,13.59559401]
[1758569821050,0.65,217.71,217.62,13.59559401]
[1758569821237,4.51481442,217.7,217.63,4.51481442]
[1758569821438,4.51481442,217.7,217.62,22.70547996]
[1758569821761,5.2427375,217.74,217.62,29.67858025]
[1758569821966,4.51481442,217.73,217.66,4.59432141]
[1758569822350,5.2427375,217.74,217.66,4.59432141]
[1758569822537,4.51481442,217.73,217.66,4.59432141]
[1758569822741,12.12811018,217.81,217.69,4.51481442]
[1758569823047,30.51481442,217.78,217.72,13.59559401]
[1758569823246,4.51481442,217.78,217.71,13.59559401]
[1758569823440,4.51481442,217.78,217.66,16.08012495]
[1758569823441,20.0,217.94,217.58,20.0]
[1758569823642,20.0,217.94,217.22,12.30705417]
[1758569823643,20.0,217.29,217.2,2.39850377]
[1758569823833,4.51481442,217.21,217.2,2.39850377]
[1758569824036,4.51481442,217.21,217.09,4.60626935]
[1758569824333,4.51481442,217.28,217.09,4.60626935]
[1758569824528,4.51481442,217.28,217.1,2.40415586]
[1758569824831,20.0,217.3,217.14,4.51481442]
[1758569825032,20.0,217.3,217.15,13.76]
[1758569825247,20.0,217.3,217.25,4.51481442]
[1758569825446,11.51649161,217.37,217.15,13.76]
[1758569825447,20.0,217.41,217.26,0.69]
[1758569825633,20.0,217.39,217.33,4.51481442]
[1758569825828,39.76,217.42,217.33,4.51481442]
[1758569826042,20.0,217.36,217.26,0.69]
[1758569826265,20.0,217.36,217.28,4.51481442]
[1758569826570,46.0,217.39,217.33,4.51481442]
[1758569826756,46.0,217.39,217.31,18.11040843]
[1758569826933,46.0,217.39,217.29,0.69]
[1758569827135,20.0,217.37,217.29,13.59559401]
[1758569827441,0.65,217.38,217.3,4.51481442]
[1758569827442,20.0,217.36,217.3,4.51481442]
[1758569828338,24.60075514,217.36,217.3,4.51481442]
[1758569828548,20.0,217.36,217.29,18.11040843]
[1758569828751,4.59932793,217.43,217.35,13.59559401]
[1758569828954,24.59932793,217.43,217.36,4.51481442]
[1758569829162,20.0,217.41,217.36,4.51481442]
[1758569829369,26.0,217.42,217.36,4.51481442]
[1758569829669,26.0,217.42,217.38,4.51481442]
[1758569829850,20.0,217.41,217.36,4.51481442]
[1758569830174,20.0,217.32,217.23,5.20481442]
[1758569830661,20.0,217.32,217.25,4.51481442]
[1758569831040,20.0,217.32,217.23,14.28559401]
[1758569831239,39.09843604,217.4,217.21,4.51481442]
[1758569831240,20.0,217.3,217.21,4.51481442]
[1758569831464,20.0,217.27,217.16,0.69]
[1758569831644,20.0,217.27,217.19,43.96]
[1758569831847,39.09843604,217.4,217.16,44.0]
[1758569831848,20.0,217.23,217.16,44.0]
[1758569832049,26.0,217.24,217.2,4.51481442]
[1758569832247,20.0,217.26,217.2,4.51481442]
[1758569832448,20.0,217.26,217.22,4.51481442]
[1758569832655,26.0,217.29,217.22,4.51481442]
[1758569832656,20.0,217.28,217.22,4.51481442]
[1758569833264,20.65,217.3,217.22,4.51481442]
[1758569833565,20.0,217.28,217.22,4.51481442]
[1758569833959,0.65,217.3,217.24,4.51481442]
[1758569833960,20.0,217.3,217.24,4.51481442]
[1758569834150,20.0,217.34,217.28,4.51481442]
[1758569834350,20.0,217.32,217.26,13.59559401]
[1758569834846,20.0,217.32,217.28,4.51481442]
[1758569835766,20.0,217.33,217.28,4.51481442]
[1758569836163,20.0,217.3,217.26,13.59559401]
[1758569836347,20.0,217.3,217.27,4.51481442]
[1758569837063,20.0,217.3,217.27,0.72]
[1758569837265,20.0,217.3,217.27,4.51481442]
[1758569837754,20.0,217.33,217.27,4.51481442]
[1758569837952,20.0,217.33,217.23,0.72]
[1758569837953,20.0,217.3,217.28,43.82]
[1758569838271,20.0,217.32,217.28,43.82]
[1758569838454,13.46222283,217.56,217.33,13.59559401]
[1758569838455,0.68,217.41,217.33,13.59559401]
[1758569838651,20.68,217.41,217.34,4.51481442]